bitfinex-derivatives/quotes_ETHF0:USTF0_20250421
["timestamp","ask_amount","ask_price","bid_price","bid_amount"]
[1745195861757,1.24276,1609.6,1609.5,9.1192]
[1745195861968,1.24273,1609.7,1609.5,9.1192]
[1745195862259,3.4779,1609.7,1609.5,12.5811]
[1745195862458,1.24276,1609.6,1609.5,12.5811]
[1745195862660,3.4779,1609.7,1609.5,53.3811]
[1745195862857,4.72061,1609.7,1609.5,53.3811]
[1745195863966,3.4779,1609.7,1609.5,53.3811]
[1745195864263,1.24276,1609.6,1609.5,46.5259]
[1745195864463,4.72063,1609.7,1609.5,46.5259]
[1745195864659,3.4779,1609.7,1609.5,46.5259]
[1745195864863,4.45047,1609.8,1609.5,46.5259]
[1745195865162,4.45045,1609.8,1609.5,46.5259]
[1745195865364,3.2078,1609.8,1609.5,46.5259]
[1745195865859,4.49189,1610.0,1609.6,3.2078]
[1745195866063,3.2078,1609.9,1609.7,3.2895]
[1745195866465,3.2078,1609.9,1609.5,43.064]
[1745195866659,1.24272,1609.7,1609.5,46.4827]
[1745195866857,3.4177,1609.8,1609.5,46.4827]
[1745195867159,16.75734343,1610.1,1609.5,46.4827]
[1745195867357,3.2078,1609.9,1609.6,3.2078]
[1745195867553,3.2078,1609.9,1609.7,3.4187]
[1745195867963,1.24252,1610.0,1609.7,3.4187]
[1745195868168,1.24254,1609.9,1609.7,5.6827]
[1745195868567,1.24251,1610.0,1609.7,5.6827]
[1745195868970,1.24253,1609.9,1609.7,5.6827]
[1745195869765,1.2425,1610.0,1609.7,5.6827]
[1745195869960,1.24253,1609.9,1609.7,5.6827]
[1745195870156,3.2078,1610.0,1609.7,2.264]
[1745195870467,1.24253,1609.9,1609.7,2.264]
[1745195870662,1.24253,1609.9,1609.8,3.4749]
[1745195870862,4.46873,1609.9,1609.8,3.4749]
[1745195871265,3.2262,1609.9,1609.8,3.4749]
[1745195871564,4.46873,1609.9,1609.8,3.4749]
[1745195871956,1.24253,1609.9,1609.8,3.4749]
[1745195872359,9.3852,1610.1,1609.8,3.4749]
[1745195872565,1.24251,1610.0,1609.8,3.4749]
[1745195872766,4.61421,1610.0,1609.8,3.4749]
[1745195872964,3.3717,1610.0,1609.8,3.4749]
[1745195873161,6.14811343,1610.2,1609.8,11.6827]
[1745195873354,10.76213343,1610.2,1609.8,16.0471]
[1745195873558,9.51981343,1610.2,1609.9,3.5137]
[1745195873765,10.76212343,1610.2,1609.9,3.5137]
[1745195873964,9.33964735,1610.0,1609.9,3.5137]
[1745195874158,8.09719735,1610.0,1609.9,5.7777]
[1745195875561,11.62399735,1610.0,1609.9,5.7777]
[1745195875869,12.86644735,1610.0,1609.9,5.7777]
[1745195876273,16.07424735,1610.0,1609.9,2.264]
[1745195877972,14.17452579,1610.0,1609.9,2.264]
[1745195878171,6.19747579,1610.0,1609.9,2.264]
[1745195878469,7.43992579,1610.0,1609.9,2.264]
[1745195878670,10.73162579,1610.0,1609.9,2.264]
[1745195879865,6.19747579,1610.0,1609.9,2.264]
[1745195880064,7.43992579,1610.0,1609.9,2.264]
[1745195880269,9.48917579,1610.0,1609.9,2.264]
[1745195880471,6.19747579,1610.0,1609.9,2.264]
[1745195881069,13.93942579,1610.0,1609.9,2.264]
[1745195881263,10.73162579,1610.0,1609.9,2.264]
[1745195881664,9.48917579,1610.0,1609.9,2.264]
[1745195882073,6.19747579,1610.0,1609.9,7.264]
[1745195882259,6.19747579,1610.0,1609.9,2.264]
[1745195882464,7.43992579,1610.0,1609.9,5.5237]
[1745195882667,10.69092579,1610.0,1609.9,46.3237]
[1745195883165,10.69092579,1610.0,1609.9,43.064]
[1745195884065,9.44847579,1610.0,1609.9,43.064]
[1745195884272,6.19747579,1610.0,1609.9,43.064]
[1745195884860,6.19747579,1610.0,1609.9,48.064]
[1745195885462,8.09719735,1610.2,1610.0,1.24241]
[1745195885663,8.09719735,1610.2,1610.1,12.2888]
[1745195886060,8.09719735,1610.2,1610.1,19.33615806]
[1745195886478,0.38447314,1610.2,1610.1,19.33615806]
[1745195886779,0.38447314,1610.2,1610.1,18.09377806]
[1745195886978,0.38447314,1610.2,1610.1,19.33615806]
[1745195887166,0.38447314,1610.2,1610.1,60.13615806]
[1745195887471,1.2423,1610.2,1610.1,53.89377806]
[1745195887672,1.2423,1610.2,1610.1,47.2048]
[1745195888665,1.24228,1610.3,1610.1,47.2048]
[1745195888867,5.9,1610.5,1610.1,47.2048]
[1745195889068,10.09928682,1610.6,1610.1,47.2048]
[1745195889069,11.34129682,1610.6,1610.2,3.3218]
[1745195889268,10.09928682,1610.6,1610.2,3.3218]
[1745195889668,4.4581,1610.6,1610.2,3.3218]
[1745195889872,6.4239,1610.6,1610.1,49.8918]
[1745195890075,1.24213,1610.5,1610.2,2.264]
[1745195890275,4.45826,1610.4,1610.2,5.5858]
[1745195890571,3.2161,1610.4,1610.2,5.5858]
[1745195891672,1.24222,1610.3,1610.2,2.264]
[1745195891873,3.2161,1610.4,1610.2,2.264]
[1745195892070,4.45828,1610.4,1610.2,2.264]
[1745195892270,1.24195,1610.7,1610.3,3.2078]
[1745195892579,4.63307,1610.5,1610.2,2.264]
[1745195893077,4.63308,1610.5,1610.2,2.264]
[1745195893378,3.391,1610.5,1610.2,2.264]
[1745195893679,3.391,1610.5,1610.2,5.6879]
[1745195894573,3.391,1610.5,1610.3,3.2078]
[1745195894881,3.391,1610.5,1610.2,2.264]
[1745195895083,4.63307,1610.5,1610.2,5.7478]
[1745195895379,3.391,1610.5,1610.2,5.7478]
[1745195896075,10.09928682,1610.8,1610.3,9.95320896]
[1745195896277,10.09928682,1610.8,1610.5,3.2078]
[1745195896474,6.6973,1610.7,1610.3,5.884]
[1745195896680,10.0977,1610.7,1610.3,5.884]
[1745195896980,14.77406,1610.7,1610.3,5.884]
[1745195897381,1.242,1610.6,1610.3,5.884]
[1745195897680,3.2661,1610.5,1610.3,5.884]
[1745195897867,15.99828682,1610.8,1610.3,5.884]
[1745195898070,3.2661,1610.7,1610.3,5.884]
[1745195898278,1.24204,1610.6,1610.3,9.4078]
[1745195898476,3.2661,1610.5,1610.3,9.4078]
[1745195899382,4.50818,1610.5,1610.3,9.4078]
[1745195899885,3.2661,1610.5,1610.3,9.4078]
[1745195900183,3.2661,1610.5,1610.3,3.5238]
[1745195900586,4.5082,1610.5,1610.3,3.5238]
[1745195901084,6.4739,1610.5,1610.2,2.264]
[1745195901488,1.24217,1610.4,1610.2,5.5254]
[1745195901677,3.2379,1610.3,1610.2,5.5254]
[1745195902586,3.2379,1610.4,1610.2,5.5254]
[1745195903479,3.2379,1610.4,1610.2,8.7332]
[1745195903983,1.24203,1610.6,1610.2,8.7332]
[1745195904282,1.24205,1610.6,1610.2,8.7332]
[1745195904482,4.51697,1610.5,1610.2,8.7332]
[1745195904874,3.2749,1610.5,1610.2,8.7332]
[1745195905081,4.51698,1610.5,1610.2,8.7332]
[1745195905281,3.2749,1610.5,1610.2,8.7332]
[1745195905475,3.2749,1610.5,1610.2,9.97546]
[1745195905682,3.2749,1610.5,1610.2,8.7332]
[1745195905882,3.2749,1610.5,1610.2,14.6172]
[1745195906880,1.24222,1610.3,1610.2,11.4094]
[1745195907079,1.24222,1610.3,1610.2,2.264]
[1745195907286,4.79362,1610.3,1610.2,2.264]
[1745195907583,8.5514,1610.3,1610.1,40.8]
[1745195907787,4.4501,1610.2,1610.1,40.8]
[1745195907989,12.6572,1610.2,1609.6,12.5182]
[1745195908291,4.45028,1610.0,1609.6,12.5182]
[1745195908487,3.5514,1609.9,1609.7,3.4264]
[1745195908882,3.5514,1609.9,1609.8,40.8]
[1745195911983,10.09928682,1610.3,1609.8,49.0078]
[1745195912289,14.79243682,1610.3,1609.9,3.3839]
[1745195912791,14.79242682,1610.3,1609.9,3.3839]
[1745195913186,14.79242682,1610.3,1609.9,5.6479]
[1745195913384,4.45014,1610.2,1609.9,2.264]
[1745195913585,3.4509,1610.1,1609.9,2.264]
[1745195914601,4.69328,1610.1,1610.0,40.8]
[1745195915297,4.69328,1610.1,1610.0,43.064]
[1745195916195,3.4509,1610.1,1610.0,43.064]
[1745195917496,4.69328,1610.1,1610.0,43.064]
[1745195917887,9.69328,1610.1,1610.0,43.064]
[1745195918993,4.69328,1610.1,1610.0,43.064]
[1745195919894,1.2429,1609.5,1609.2,3.2078]
[1745195920196,8.9178,1609.7,1609.2,5.5306]
[1745195920495,1.24289,1609.5,1609.3,40.8]
[1745195920692,3.2042,1609.4,1609.3,40.8]
[1745195921286,4.44712,1609.4,1609.3,40.8]
[1745195923205,12.65492,1609.4,1609.3,40.8]
[1745195923391,1.243,1609.3,1609.2,0.25278]
[1745195923696,1.24357,1608.6,1608.2,7.80950067]
[1745195923896,3.4076,1608.5,1608.3,3.3149]
[1745195924401,3.2078,1608.7,1608.4,40.8]
[1745195924598,6.3502,1608.9,1608.5,3.4237]
[1745195924791,4.4513,1608.7,1608.5,3.4237]
[1745195924991,4.38594,1608.6,1608.5,3.4237]
[1745195925295,4.38594,1608.6,1608.5,2.264]
[1745195926994,9.38594,1608.6,1608.5,2.264]
[1745195927191,3.10924,1608.4,1607.5,12.431]
[1745195927386,3.2078,1608.0,1607.5,10.0041]
[1745195927596,3.3339,1607.9,1607.6,40.8]
[1745195927897,3.3339,1607.9,1607.7,3.4571]
[1745195928101,1.24415,1607.8,1607.7,2.264]
[1745195928896,4.45195,1607.8,1607.7,2.264]
[1745195929195,3.2078,1607.8,1607.7,2.264]
[1745195929391,7.78585,1607.8,1607.7,2.264]
[1745195929697,6.5417,1607.8,1607.7,2.264]
[1745195929900,3.3339,1607.8,1607.7,2.264]
[1745195930099,5.714,1607.9,1607.7,5.7211]
[1745195930299,4.55032,1608.0,1607.7,5.7211]
[1745195930798,6.5141,1608.0,1607.7,5.7211]
[1745195931498,7.75813,1608.0,1607.7,2.264]
[1745195931697,6.5141,1608.0,1607.7,5.6979]
[1745195931896,3.3063,1608.0,1607.7,5.6979]
[1745195932896,4.55033,1608.0,1607.7,5.6979]
[1745195933097,7.75814,1608.0,1607.7,5.6979]
[1745195933699,4.45195,1607.8,1607.7,2.264]
[1745195934191,7.85135,1607.8,1607.7,2.264]
[1745195936607,5.717,1608.0,1607.7,2.264]
[1745195936804,13.47988,1608.1,1607.7,5.715]
[1745195937108,10.27208,1608.1,1607.7,5.715]
[1745195937804,1.24402,1608.0,1607.7,5.715]
[1745195938101,4.45195,1607.8,1607.7,2.264]
[1745195938401,3.2078,1607.8,1607.7,2.264]
[1745195938608,4.5551,1608.0,1607.7,5.715]
[1745195938800,3.3111,1608.0,1607.7,5.715]
[1745195939603,4.55511,1608.0,1607.7,5.715]
[1745195940103,3.3111,1608.0,1607.7,5.715]
[1745195940499,1.24415,1607.8,1607.7,2.264]
[1745195941000,8.9248,1608.1,1607.7,5.5745]
[1745195941208,6.96095,1608.1,1607.7,5.5745]
[1745195941512,10.32285,1608.1,1607.7,5.5745]
[1745195941705,12.322,1608.5,1607.7,14.3563]
[1745195941706,15.5298,1608.5,1607.7,14.3563]
[1745195942003,5.574,1608.6,1608.1,3.2078]
[1745195942205,3.3619,1608.5,1608.2,3.3105]
[1745195942506,1.24341,1608.8,1608.3,3.2078]
[1745195942701,100.43,1609.2,1608.5,3.2078]
[1745195942907,100.43,1609.2,1608.6,44.1881]
[1745195942908,1.24327,1609.0,1608.6,44.1881]
[1745195943102,6.5773,1609.1,1608.7,3.3881]
[1745195943307,1.24338,1608.8,1608.6,40.8]
[1745195943508,3.3695,1608.7,1608.6,44.1881]
[1745195943916,1.24334,1608.9,1608.6,44.1881]
[1745195944213,6.5773,1609.1,1608.7,3.3881]
[1745195944403,1.24338,1608.8,1608.6,40.8]
[1745195944707,3.3695,1608.7,1608.6,44.1881]
[1745195945114,3.2078,1609.1,1608.6,44.1881]
[1745195945407,1.24334,1608.9,1608.7,3.3881]
[1745195945715,1.24346,1608.7,1608.6,40.8]
[1745195946008,4.41734,1608.8,1608.6,40.8]
[1745195946709,4.41732,1608.8,1608.6,40.8]
[1745195948319,4.45126,1608.7,1608.6,40.8]
[1745195948510,11.17106,1608.7,1608.6,40.8]
[1745195948809,11.17106,1608.7,1607.9,3.2856]
[1745195948810,21.02109267,1608.7,1607.8,6.4868]
[1745195949014,4.4517,1608.2,1607.8,6.4868]
[1745195949206,8.7808,1608.2,1607.9,3.2856]
[1745195949405,8.8518,1608.5,1608.0,3.2078]
[1745195949603,8.8518,1608.5,1608.1,44.0856]
[1745195949800,11.557,1609.3,1608.2,9.1696]
[1745195950005,3.2788,1609.0,1608.6,3.2078]
[1745195950201,1.24334,1608.9,1608.7,3.2856]
[1745195950408,1.24338,1608.8,1608.7,3.2856]
[1745195950609,3.2788,1608.8,1608.5,11.4856]
[1745195950815,3.2078,1609.2,1608.7,3.2078]
[1745195951003,3.2788,1609.5,1608.8,3.2856]
[1745195951311,1.2433,1608.9,1608.8,3.2856]
[1745195951514,1.24338,1608.8,1608.7,2.264]
[1745195951715,4.72648,1608.8,1608.7,2.264]
[1745195951911,12.93428,1608.8,1608.7,2.264]
[1745195952316,1.24374,1608.4,1608.1,44.0078]
[1745195952512,4.72688,1608.3,1608.1,44.0078]
[1745195952706,4.72688,1608.3,1608.1,47.3382]
[1745195953112,4.45165,1608.2,1608.1,40.8]
[1745195953316,7.93475,1608.2,1608.1,40.8]
[1745195953813,3.2078,1608.2,1608.1,40.8]
[1745195954023,1.24365,1608.5,1608.1,49.99270642]
[1745195954317,4.4515,1608.4,1608.2,3.3304]
[1745195954517,3.2834,1608.3,1608.2,3.3304]
[1745195955214,4.52717,1608.3,1608.2,2.264]
[1745195955814,3.2834,1608.3,1608.2,2.264]
[1745195956120,4.52717,1608.3,1608.2,2.264]
[1745195960218,3.2834,1608.3,1608.2,2.264]
[1745195960413,4.52717,1608.3,1608.2,2.264]
[1745195960621,4.52717,1608.3,1608.2,5.7662]
[1745195961122,4.52717,1608.3,1608.2,2.264]
[1745195961824,7.73497,1608.3,1608.2,2.264]
[1745195962121,4.52717,1608.3,1608.2,2.264]
[1745195962825,3.2834,1608.3,1608.2,5.7662]
[1745195963024,4.52717,1608.3,1608.2,5.7662]
[1745195963333,1.24374,1608.4,1608.2,5.7662]
[1745195963510,1.24338,1608.8,1608.3,0.86310328]
[1745195963712,1.24348,1608.7,1608.5,3.2078]
[1745195963909,1.24346,1608.7,1608.6,0.86264932]
[1745195964120,1.24346,1608.7,1608.6,40.8]
[1745195965115,4.73256,1608.7,1608.6,40.8]
[1745195966825,4.73256,1608.7,1608.6,44.2377]
[1745195967026,1.24346,1608.7,1608.6,44.2377]
[1745195967217,1.24346,1608.7,1608.6,40.8]
[1745195967722,10.07206,1608.7,1608.6,40.8]
[1745195968313,13.27986,1608.7,1608.6,40.8]
[1745195968525,17.87273,1609.1,1608.6,40.8]
[1745195968824,1.24345,1608.8,1608.7,3.4377]
[1745195969218,1.24345,1608.8,1608.7,5.7017]
[1745195969616,1.24345,1608.8,1608.7,2.264]
[1745195969817,4.45125,1608.8,1608.7,2.264]
[1745195970622,1.24345,1608.8,1608.7,2.264]
[1745195971027,4.45125,1608.8,1608.7,2.264]
[1745195971622,1.24345,1608.8,1608.7,2.264]
[1745195972827,1.24345,1608.8,1608.7,0.95963]
[1745195973019,9.90525,1608.8,1608.7,0.95963]
[1745195974126,6.69745,1608.8,1608.7,0.95963]
[1745195974326,6.69745,1608.8,1608.7,4.20553]
[1745195974728,1.24345,1608.8,1608.7,4.20553]
[1745195975129,4.70685,1608.8,1608.7,4.20553]
[1745195975738,9.47266104,1608.9,1608.7,4.20553]
[1745195975936,1.24338,1608.8,1608.7,4.20553]
[1745195976423,8.22931104,1608.9,1608.7,4.20553]
[1745195976623,9.90518,1608.8,1608.7,0.95963]
[1745195976829,13.35358,1608.8,1608.7,0.95963]
[1745195977545,1.24346,1608.7,1608.6,40.8]
[1745195977835,4.69186,1608.7,1608.6,40.8]
[1745195978536,4.69186,1608.7,1608.6,44.277]
[1745195979136,4.69186,1608.7,1608.6,40.8]
[1745195980246,1.24354,1608.6,1608.5,0.95237]
[1745195980539,1.24385,1608.2,1608.1,6.4009]
[1745195981236,1.24385,1608.2,1608.1,47.2009]
[1745195981437,1.24383,1608.3,1608.1,52.2009]
[1745195981634,1.24383,1608.3,1608.2,3.2386]
[1745195981835,1.24383,1608.3,1608.2,8.2386]
[1745195982038,1.24383,1608.3,1608.2,3.2386]
[1745195982237,1.24383,1608.3,1608.2,5.5026]
[1745195983941,1.24377,1608.3,1608.2,10.5026]
[1745195984127,3.2078,1608.6,1608.2,10.5026]
[1745195984332,1.24369,1608.4,1608.2,5.5026]
[1745195984530,13.68331104,1608.8,1608.3,3.2078]
[1745195984842,9.47292104,1608.5,1608.4,4.38134134]
[1745195985037,9.47292104,1608.5,1608.4,3.5157]
[1745195985240,9.47292104,1608.5,1608.4,5.7797]
[1745195985742,9.47292104,1608.5,1608.4,10.7797]
[1745195985943,9.47292104,1608.5,1608.4,15.1515963]
[1745195986245,8.22931104,1608.5,1608.4,15.1515963]
[1745195986841,9.47292104,1608.5,1608.4,20.6065963]
[1745195988239,8.22931104,1608.5,1608.4,20.6065963]
[1745195988435,9.47292104,1608.5,1608.4,20.6065963]
[1745195989142,9.47292104,1608.5,1608.4,2.264]
[1745195989350,4.72061,1608.5,1608.4,2.264]
[1745195990548,3.45821,1608.5,1608.4,2.264]
[1745195990746,13.66042,1608.5,1608.4,2.264]
[1745195991139,3.45821,1608.5,1608.4,2.264]
[1745195991535,5.454,1608.8,1608.4,2.264]
[1745195991743,16.12434104,1608.9,1608.5,3.2162]
[1745195992145,1.24344,1608.8,1608.5,5.4802]
[1745195992440,1.24348,1608.7,1608.5,5.4802]
[1745195992646,14.88101104,1608.9,1608.5,5.4802]
[1745195992647,1.24344,1608.8,1608.5,5.4802]
[1745195992945,7.89506,1608.9,1608.5,5.4802]
[1745195993248,1.24341,1608.8,1608.5,5.4802]
[1745195993441,1.24341,1608.8,1608.5,2.264]
[1745195993647,6.6517,1608.9,1608.5,2.264]
[1745195993850,4.60052,1608.8,1608.5,2.264]
[1745195994949,1.24348,1608.7,1608.5,2.264]
[1745195995150,3.4997,1608.7,1608.6,3.421]
[1745195995851,4.74316,1608.7,1608.6,3.421]
[1745195996151,1.24346,1608.7,1608.6,3.421]
[1745195996755,4.74316,1608.7,1608.6,3.421]
[1745195997554,1.24354,1608.6,1608.5,2.264]
[1745195997747,4.67124,1608.6,1608.5,2.264]
[1745195998141,4.67124,1608.6,1608.5,5.4872]
[1745195998952,4.67124,1608.6,1608.5,2.264]
[1745196001055,3.4277,1608.6,1608.5,2.264]
[1745196001251,1.24346,1608.7,1608.5,5.7925]
[1745196001857,4.43766,1608.7,1608.6,40.8]
[1745196002251,3.1942,1608.7,1608.6,40.8]
[1745196002758,4.43766,1608.7,1608.6,40.8]
[1745196003761,3.1942,1608.7,1608.6,40.8]
[1745196005251,9.53917903,1608.8,1608.6,40.8]
[1745196005452,9.53917903,1608.8,1608.7,3.2916]
[1745196005856,12.92987903,1608.8,1608.7,3.2916]
[1745196006051,12.92987903,1608.8,1608.7,44.0916]
[1745196006253,12.92987903,1608.8,1608.7,46.3556]
[1745196006961,12.92987903,1608.8,1608.7,43.064]
[1745196007159,16.13767903,1608.8,1608.7,43.064]
[1745196007354,14.89423903,1608.8,1608.7,43.064]
[1745196007559,12.92981903,1608.8,1608.7,43.064]
[1745196008066,10.07776747,1608.9,1608.7,63.38188117]
[1745196008360,10.07776747,1608.9,1608.8,8.92876117]
[1745196008864,10.07776747,1608.9,1608.8,14.69120038]
[1745196009361,10.07776747,1608.9,1608.8,20.57520038]
[1745196010159,10.07776747,1608.9,1608.8,61.37520038]
[1745196010956,12.20372719,1609.2,1609.1,1.24315]
[1745196011152,12.20372719,1609.2,1609.1,16.55794941]
[1745196011458,12.20372719,1609.2,1609.1,20.31479941]
[1745196011655,1.24307,1609.2,1609.1,16.07723862]
[1745196011860,1.24307,1609.2,1609.1,18.56259941]
[1745196012063,1.24307,1609.2,1609.1,17.6996]
[1745196013063,1.24307,1609.2,1609.1,18.56163892]
[1745196013267,1.24307,1609.2,1609.1,17.6996]
[1745196013565,4.48555,1609.3,1609.1,17.6996]
[1745196013766,3.10684,1609.7,1609.2,3.4759]
[1745196014062,3.3464,1609.4,1609.3,3.2078]
[1745196014459,4.62336747,1609.4,1609.3,3.2078]
[1745196016664,4.62336747,1609.4,1609.3,9.0918]
[1745196017863,4.62336747,1609.4,1609.3,10.3348]
[1745196018371,4.62336747,1609.4,1609.3,13.7677]
[1745196018569,4.62336747,1609.4,1609.3,12.5247]
[1745196018770,4.62336747,1609.4,1609.3,13.7677]
[1745196019268,3.408,1609.8,1609.6,1.24276]
[1745196019576,7.93886747,1609.8,1609.7,3.2736]
[1745196020068,9.18147747,1609.8,1609.7,40.8]
[1745196020267,9.18147747,1609.8,1609.2,3.2078]
[1745196020268,12.93886747,1609.8,1609.2,3.2078]
[1745196020473,1.24294,1609.4,1609.2,3.2078]
[1745196020679,3.3155,1609.3,1609.2,3.2078]
[1745196020973,4.62336747,1609.5,1609.2,9.8088]
[1745196021173,7.93886747,1609.4,1609.2,10.8298]
[1745196021362,7.93886747,1609.4,1609.2,12.07287]
[1745196021567,3.2078,1609.7,1609.3,1.243]
[1745196021764,8.08516747,1609.6,1609.5,40.8]
[1745196022174,8.08516747,1609.6,1609.5,43.064]
[1745196024872,3.2078,1609.9,1609.5,43.064]
[1745196025067,4.62336747,1609.8,1609.5,43.064]
[1745196025273,3.2078,1609.9,1609.5,43.064]
[1745196025274,4.62336747,1609.9,1609.8,1.24261]
[1745196025581,3.2078,1610.2,1609.8,12.48461]
[1745196025767,11.07616747,1610.2,1609.9,3.3467]
[1745196025965,4.62336747,1610.1,1609.9,4.58921]
[1745196026169,3.245,1610.1,1610.0,1.24245]
[1745196026370,3.5389,1610.3,1610.0,4.58915]
[1745196026669,8.16226747,1610.3,1610.0,7.92895]
[1745196026870,3.245,1610.2,1610.1,40.8]
[1745196027271,3.245,1610.2,1610.1,44.0078]
[1745196027573,3.245,1610.2,1610.1,40.8]
[1745196027771,3.245,1610.2,1610.1,47.39938]
[1745196028479,3.2078,1610.5,1610.1,47.39938]
[1745196028788,8.10836747,1610.4,1610.2,3.5941]
[1745196029080,3.485,1610.4,1610.2,3.5941]
[1745196029269,4.62336747,1610.3,1610.2,2.264]
[1745196029470,3.485,1610.4,1610.2,2.264]
[1745196029681,8.10836747,1610.4,1610.2,7.1004]
[1745196030069,3.485,1610.4,1610.2,7.1004]
[1745196030276,3.485,1610.4,1610.3,1.24222]
[1745196030584,1.2419,1610.8,1610.4,1.24211]
[1745196030877,8.07946747,1610.7,1610.5,4.44985]
[1745196031071,3.4561,1610.7,1610.6,3.5005]
[1745196031280,12.20372719,1610.9,1610.6,3.5005]
[1745196031474,15.65982719,1610.9,1610.7,8.3388]
[1745196031675,4.62336747,1610.8,1610.7,8.3388]
[1745196031875,3.4561,1610.8,1610.7,49.1388]
[1745196032081,3.4561,1610.8,1610.7,52.6393]
[1745196032280,3.4561,1610.8,1610.7,54.9033]
[1745196034182,7.85708,1611.2,1610.7,52.6393]
[1745196034384,8.11706747,1611.1,1610.9,3.2078]
[1745196034575,9.35867747,1611.1,1610.7,52.6393]
[1745196034785,4.62336747,1611.0,1610.7,52.6393]
[1745196035078,3.4937,1610.9,1610.7,52.6393]
[1745196035678,6.6155,1611.2,1610.7,52.6393]
[1745196035976,8.11706747,1611.1,1610.8,3.2078]
[1745196036880,4.62336747,1611.0,1610.8,3.2078]
[1745196037075,7.96296747,1611.0,1610.8,3.2078]
[1745196037283,5.86512747,1610.9,1610.8,3.2078]
[1745196037477,7.96296747,1610.9,1610.8,3.2078]
[1745196037972,9.20472747,1610.9,1610.8,3.2078]
[1745196044085,1.24184,1610.8,1610.7,40.8292]
[1745196044276,3.10484,1610.7,1610.3,3.2078]
[1745196044477,1.24215,1610.4,1610.1,8.5282]
[1745196044683,4.82949,1610.3,1610.1,8.5282]
[1745196045180,1.2423,1610.2,1610.1,8.5282]
[1745196045382,4.8295,1610.2,1610.1,8.5282]
[1745196045886,4.8295,1610.2,1610.1,49.3282]
[1745196046089,3.5872,1610.2,1610.1,49.3282]
[1745196046283,4.8295,1610.2,1610.1,49.3282]
[1745196046687,3.5872,1610.2,1610.1,49.3282]
[1745196046882,4.8295,1610.2,1610.1,49.3282]
[1745196047690,3.5872,1610.2,1610.1,49.3282]
[1745196047987,4.8295,1610.2,1610.1,49.3282]
[1745196048585,4.8295,1610.2,1610.1,40.8]
[1745196048789,1.24238,1610.1,1610.0,2.264]
[1745196048985,1.24296,1609.4,1609.3,3.2078]
[1745196049484,4.62336747,1609.4,1609.3,3.2078]
[1745196049683,4.62336747,1609.4,1609.3,6.6234]
[1745196049886,4.62336747,1609.4,1609.3,47.4234]
[1745196050085,5.86628747,1609.4,1609.3,47.4234]
[1745196051087,4.62336747,1609.4,1609.3,47.4234]
[1745196051389,3.3623,1609.6,1609.3,52.5534]
[1745196051689,4.62336747,1609.5,1609.4,3.4156]
[1745196051893,5.86616747,1609.6,1609.4,6.6234]
[1745196052084,1.24284,1609.5,1609.4,6.6234]
[1745196052283,1.24284,1609.5,1609.4,8.8874]
[1745196052483,5.86620747,1609.5,1609.4,8.8874]
[1745196052789,3.5732,1609.7,1609.4,8.8874]
[1745196052988,4.62336747,1609.6,1609.4,8.8874]
[1745196053189,5.86613747,1609.6,1609.4,8.8874]
[1745196053390,4.62336747,1609.6,1609.4,8.8874]
[1745196053783,5.86620747,1609.5,1609.4,8.8874]
[1745196053984,9.43940747,1609.5,1609.4,5.4718]
[1745196054184,8.19656747,1609.5,1609.4,5.4718]
[1745196054386,8.19656747,1609.5,1609.4,9.0104]
[1745196054685,9.43940747,1609.5,1609.4,9.0104]
[1745196055193,9.43940747,1609.5,1609.4,5.8026]
[1745196055587,4.62336747,1609.5,1609.4,9.0104]
[1745196056286,9.26520747,1609.5,1609.4,5.4718]
[1745196056682,8.02236747,1609.5,1609.4,9.0769]
[1745196056888,4.62336747,1609.5,1609.4,9.0769]
[1745196057088,3.399,1609.8,1609.4,14.0769]
[1745196057391,3.399,1609.8,1609.7,3.2078]
[1745196057786,8.02236747,1609.8,1609.7,3.2078]
[1745196057987,8.02236747,1609.8,1609.6,5.131]
[1745196058187,4.62336747,1609.7,1609.6,5.131]
[1745196058391,8.05156747,1609.7,1609.6,5.131]
[1745196059294,3.1755,1610.0,1609.6,10.131]
[1745196059492,3.4282,1610.0,1609.8,3.2078]
[1745196059692,8.05156747,1610.0,1609.8,3.2078]
[1745196059882,8.05156747,1610.0,1609.9,40.8]
[1745196060089,8.05156747,1610.0,1609.9,46.6853]
[1745196060690,9.29401747,1610.0,1609.9,46.6853]
[1745196060891,9.29401747,1610.0,1609.9,43.064]
[1745196061091,8.05156747,1610.0,1609.9,43.064]
[1745196061401,3.1677,1610.2,1609.9,46.6287]
[1745196061593,8.20106747,1610.1,1609.9,46.6287]
[1745196061897,8.20106747,1610.1,1610.0,3.2078]
[1745196062397,8.20106747,1610.1,1610.0,5.4718]
[1745196062995,4.62336747,1610.1,1610.0,6.71425]
[1745196063196,4.62336747,1610.1,1610.0,13.49885]
[1745196063598,3.5777,1610.3,1610.0,13.49885]
[1745196063798,4.62336747,1610.2,1610.0,13.4988]
[1745196063990,4.62336747,1610.2,1610.1,1.24238]
[1745196064191,4.62336747,1610.2,1610.1,83.03238]
[1745196064499,3.5777,1610.3,1610.2,1.2423]
[1745196064703,3.3277,1610.8,1610.2,11.825]
[1745196064891,8.13626747,1610.7,1610.5,4.44985]
[1745196065199,4.62336747,1610.8,1610.6,45.61819]
[1745196065498,4.62336747,1610.8,1610.7,6.784]
[1745196066098,4.62336747,1610.8,1610.7,51.08991]
[1745196066598,3.5129,1610.9,1610.8,1.24184]